bitfinex/quotes_SOLUSD_20220109
["timestamp","ask_amount","ask_price","bid_price","bid_amount"]
[1641691699122,10.5247,142.56,142.46,50.39555225]
[1641691699320,16.29485899,142.63,142.47,94.7]
[1641691699528,10.11,142.68,142.48,10.11]
[1641691699722,195.48387218,142.68,142.48,138.14345313]
[1641691699924,5.51,142.65,142.48,136.49]
[1641691700123,47.4678,142.64,142.48,140.45344795]
[1641691700423,57.5778,142.64,142.48,14.07344795]
[1641691700922,10.533,142.57,142.48,14.07344795]
[1641691701124,3.0,142.56,142.48,14.07344795]
[1641691701421,3.51,142.56,142.48,3.96344795]
[1641691701624,3.51,142.56,142.45,10.11]
[1641691701821,35.1098,142.53,142.45,10.11]
[1641691702022,10.5324,142.49,142.45,10.11]
[1641691702224,0.26,142.52,142.45,10.11]
[1641691702524,46.885,142.56,142.45,36.75609248]
[1641691702525,0.26,142.55,142.45,36.75609248]
[1641691702725,81.9837,142.56,142.45,26.64609248]
[1641691702923,0.26,142.55,142.45,26.64609248]
[1641691703124,10.5292,142.53,142.45,26.64609248]
[1641691703625,0.51,142.52,142.45,26.64609248]
[1641691705525,11.0402,142.52,142.45,26.64609248]
[1641691705925,0.51,142.52,142.45,26.64609248]
[1641691706325,0.51,142.54,142.45,26.64609248]
[1641691706526,10.5293,142.53,142.45,26.64609248]
[1641691706728,0.51,142.54,142.45,26.64609248]
[1641691707926,11.039,142.54,142.45,26.64609248]
[1641691709630,11.039,142.54,142.42,10.11]
[1641691709835,3.0,142.53,142.42,10.11]
[1641691710031,10.5332,142.48,142.39,10.11]
[1641691710431,0.25,142.47,142.39,10.11]
[1641691710632,0.51,142.47,142.39,38.01358626]
[1641691711131,22.8356,142.51,142.39,38.01358626]
[1641691711333,0.25,142.5,142.39,38.01358626]
[1641691711531,0.25,142.5,142.39,48.54608626]
[1641691712534,0.51,142.5,142.4,3.0]
[1641691712735,10.5325,142.49,142.4,3.0]
[1641691712934,0.51,142.48,142.4,3.0]
[1641691713336,0.25,142.48,142.4,13.5317]
[1641691713935,0.25,142.48,142.4,3.0]
[1641691714835,0.25,142.48,142.39,48.54608626]
[1641691715037,0.51,142.48,142.39,48.54608626]
[1641691716335,0.51,142.49,142.39,48.54608626]
[1641691716541,0.25,142.49,142.39,48.54608626]
[1641691717936,0.51,142.49,142.39,48.54608626]
[1641691718835,11.0421,142.49,142.39,48.54608626]
[1641691720135,11.0421,142.49,142.39,38.01358626]
[1641691720542,10.7821,142.49,142.39,38.01358626]
[1641691720937,0.25,142.49,142.39,38.01358626]
[1641691721138,0.25,142.49,142.39,20.6427]
[1641691721340,1.65345313,142.48,142.35,10.11]
[1641691721538,3.0,142.47,142.35,10.11]
[1641691721737,3.25,142.47,142.35,10.11]
[1641691721939,0.26,142.46,142.35,10.11]
[1641691722239,0.26,142.46,142.36,26.96420232]
[1641691722646,10.537,142.42,142.33,10.11]
[1641691723036,7.638,142.43,142.33,10.11]
[1641691723037,0.51,142.41,142.33,10.11]
[1641691723439,0.25,142.41,142.33,10.11]
[1641691723738,0.25,142.41,142.33,38.6944784]
[1641691723936,10.7874,142.41,142.33,38.6944784]
[1641691724137,10.5374,142.41,142.33,38.6944784]
[1641691724339,0.25,142.4,142.33,38.6944784]
[1641691724741,0.51,142.4,142.33,38.6944784]
[1641691724940,0.25,142.4,142.33,38.6944784]
[1641691725539,10.538,142.4,142.33,38.6944784]
[1641691726043,74.4658,142.45,142.33,38.6944784]
[1641691726339,22.8522,142.46,142.33,38.6944784]
[1641691726639,10.5379,142.41,142.33,38.6944784]
[1641691727039,0.25,142.4,142.33,38.6944784]
[1641691727239,35.3763,142.44,142.33,38.6944784]
[1641691727440,3.25,142.44,142.33,38.6944784]
[1641691727640,10.5389,142.39,142.33,38.6944784]
[1641691728539,35.1296,142.43,142.33,38.6944784]
[1641691728740,0.25,142.44,142.33,38.6944784]
[1641691728939,10.5364,142.43,142.34,0.26]
[1641691729140,0.25,142.44,142.34,10.37]
[1641691729944,0.25,142.44,142.34,20.9064]
[1641691730843,0.25,142.44,142.34,20.6464]
[1641691731946,23.2369,142.48,142.35,0.25]
[1641691732142,47.0691,142.5,142.41,10.5311]
[1641691733343,0.25,142.49,142.41,10.5311]
[1641691734645,0.25,142.49,142.4,32.74636083]
[1641691735245,0.25,142.49,142.4,10.11]
[1641691735445,11.44345313,142.49,142.4,10.11]
[1641691735647,10.5349,142.45,142.36,20.6449]
[1641691735847,16.8579,142.45,142.36,20.6449]
[1641691736046,0.51,142.44,142.36,20.6449]
[1641691736247,22.6176,142.48,142.37,31.0703065]
[1641691736446,0.25,142.47,142.38,10.11]
[1641691736947,0.25,142.47,142.42,10.5304]
[1641691737552,0.25,142.47,142.43,25.5610762]
[1641691737950,0.25,142.48,142.4,10.11]
[1641691739048,11.043,142.48,142.4,10.11]
[1641691739450,11.043,142.48,142.38,31.05284464]
[1641691739651,17.206,142.48,142.38,31.05284464]
[1641691741053,3.0,142.49,142.39,10.11]
[1641691741255,10.5303,142.51,142.39,10.11]
[1641691741653,3.0,142.5,142.39,10.11]
[1641691742152,15.18495313,142.5,142.39,10.11]
[1641691742352,0.26,142.49,142.39,10.11]
[1641691742552,3.26,142.49,142.39,10.11]
[1641691742952,0.25,142.48,142.39,10.11]
[1641691743153,0.25,142.48,142.4,10.5315]
[1641691743352,0.51,142.49,142.4,10.5315]
[1641691743753,0.51,142.49,142.37,10.11]
[1641691744153,0.51,142.49,142.41,10.531]
[1641691744354,0.51,142.49,142.38,35.1023]
[1641691744553,0.51,142.49,142.37,10.11]
[1641691745260,3.25,142.51,142.4,10.5321]
[1641691745455,10.5317,142.49,142.4,10.5321]
[1641691745856,0.25,142.48,142.39,10.11]
[1641691746484,10.7822,142.48,142.39,10.11]
[1641691746984,0.26,142.47,142.39,10.11]
[1641691747587,0.51,142.48,142.39,10.11]
[1641691748786,15.69585313,142.48,142.36,10.535]
[1641691748986,22.46085313,142.48,142.36,10.535]
[1641691749185,22.46085313,142.48,142.35,10.11]
[1641691749386,24.7608,142.47,142.35,10.11]
[1641691749586,80.596,142.46,142.35,10.11]
[1641691749786,10.5362,142.43,142.35,20.6458]
[1641691749988,0.51,142.42,142.35,10.11]
[1641691750186,0.51,142.42,142.31,10.11]
[1641691750588,3.51,142.42,142.31,10.11]
[1641691750788,10.5411,142.37,142.31,10.11]
[1641691750987,0.25,142.36,142.31,10.11]
[1641691752190,0.51,142.36,142.31,10.11]
[1641691752590,0.51,142.36,142.27,10.11]
[1641691752993,11.0508,142.36,142.25,10.11]
[1641691753291,15.70425313,142.36,142.23,110.8353339]
[1641691753493,10.11,142.35,142.23,6.0253339]
[1641691753690,10.11,142.35,142.19,94.7]
[1641691754002,10.5533,142.27,142.19,94.7]
[1641691754192,18.5523,142.27,142.19,94.7]
[1641691754392,5.16345313,142.26,142.19,94.7]
[1641691754791,1.65345313,142.25,142.19,94.7]
[1641691754993,0.51,142.24,142.19,94.7]
[1641691755192,3.51,142.24,142.19,94.7]
[1641691755395,10.5552,142.22,142.16,5.96041577]
[1641691755597,3.26,142.21,142.16,5.96041577]
[1641691755797,3.26,142.21,142.14,94.7]
[1641691755798,9.733,142.21,142.14,94.7]
[1641691756400,10.5598,142.18,142.14,24.2832]
[1641691756597,17.7358,142.18,142.08,5.86557077]
[1641691756798,3.51,142.17,142.08,5.86557077]
[1641691757197,3.51,142.17,142.09,94.7]
[1641691757697,10.5637,142.13,142.09,94.7]
[1641691757898,0.25,142.12,142.09,94.7]
[1641691758100,0.0001,142.11,142.09,94.7]
[1641691758296,100.20295313,142.21,142.09,94.7]
[1641691758297,108.6595,142.21,142.09,94.7]
[1641691758498,98.5495,142.21,142.1,26.56061576]
[1641691758697,59.1817,142.24,142.15,94.7]
[1641691758899,49.0717,142.24,142.15,94.7]
[1641691759697,10.5558,142.19,142.15,94.7]
[1641691759898,49.0717,142.24,142.15,94.7]
[1641691760100,3.0,142.23,142.11,10.11]
[1641691760306,49.0717,142.24,142.11,10.11]
[1641691760501,49.0717,142.24,142.12,1.65345313]
[1641691760701,49.0717,142.24,142.11,10.11]
[1641691760899,10.5545,142.21,142.11,10.11]
[1641691761099,49.0717,142.24,142.11,10.11]
[1641691761308,10.11,142.26,142.12,1.65345313]
[1641691761600,10.11,142.29,142.12,12.27345313]
[1641691761901,72.6314,142.3,142.2,10.5453]
[1641691762299,72.6314,142.3,142.17,10.11]
[1641691762700,0.25,142.29,142.17,10.11]
[1641691763306,10.11,142.28,142.13,10.11]
[1641691763502,0.51,142.27,142.14,3.26]
[1641691763700,0.51,142.27,142.14,36.25285013]
[1641691763900,0.51,142.27,142.14,32.99285013]
[1641691764502,0.25,142.27,142.15,11.76345313]
[1641691764702,0.25,142.27,142.15,12.02345313]
[1641691764902,0.25,142.28,142.15,12.02345313]
[1641691765131,72.6314,142.3,142.16,1.65345313]
[1641691765302,72.6314,142.3,142.17,10.11]
[1641691765504,96.9997,142.33,142.23,10.5442]
[1641691765701,96.9997,142.33,142.23,34.11061544]
[1641691765904,96.9997,142.33,142.23,44.22061544]
[1641691766101,24.1055,142.34,142.23,44.22061544]
[1641691766802,24.1055,142.34,142.23,10.11]
[1641691766803,34.6499,142.34,142.23,10.11]
[1641691767103,0.26,142.33,142.23,10.11]
[1641691767501,3.26,142.33,142.23,10.11]
[1641691767702,3.51,142.33,142.23,10.11]
[1641691768102,3.25,142.33,142.23,10.11]
[1641691768304,3.25,142.33,142.23,37.49556231]
[1641691768506,24.1055,142.34,142.23,37.49556231]
[1641691768902,24.1055,142.34,142.24,3.0]
[1641691769105,24.1055,142.34,142.25,10.11]
[1641691769304,278.1796,142.39,142.25,10.11]
[1641691769503,302.2556,142.39,142.26,3.0]
[1641691769703,302.2556,142.39,142.25,10.11]
[1641691769903,278.6483,142.39,142.3,10.5385]
[1641691770105,203.5972,142.39,142.3,10.5385]
[1641691770507,146.7293,142.39,142.3,10.5385]
[1641691770705,73.4143,142.39,142.3,10.5385]
[1641691771709,0.26,142.38,142.3,10.5385]
[1641691772106,0.26,142.38,142.28,20.6504]
[1641691772308,3.26,142.38,142.28,10.11]
[1641691772506,5.16345313,142.38,142.28,10.11]
[1641691772709,5.16345313,142.38,142.24,10.11]
[1641691773207,3.51,142.38,142.24,10.11]
[1641691773408,38.6544,142.38,142.24,20.6534]
[1641691773607,0.51,142.38,142.24,22.30685313]
[1641691773809,0.51,142.38,142.25,0.26]
[1641691774006,97.5037,142.39,142.25,0.26]
[1641691774007,97.5037,142.39,142.26,10.11]
[1641691774209,73.4143,142.39,142.26,11.76345313]
[1641691774408,73.4143,142.39,142.27,0.26]
[1641691774606,73.4143,142.39,142.29,26.72989212]
[1641691775007,73.4143,142.39,142.28,10.11]
[1641691775407,0.51,142.38,142.2,114.1941]
[1641691775607,10.11,142.37,142.21,10.11]
[1641691775808,11.76345313,142.37,142.21,10.11]
[1641691776010,10.5428,142.35,142.22,31.10544436]
[1641691776211,22.9792,142.38,142.23,10.11]
[1641691776414,22.9792,142.38,142.24,0.26]
[1641691776614,22.9792,142.38,142.25,10.11]
[1641691776812,1.65345313,142.37,142.22,31.10544436]
[1641691777015,10.11,142.36,142.22,31.10544436]
[1641691777214,10.5457,142.31,142.22,31.10544436]
[1641691777414,0.25,142.3,142.22,31.10544436]
[1641691777813,3.0,142.37,142.23,10.11]
[1641691778014,22.5444,142.4,142.24,3.0]
[1641691778316,0.25,142.36,142.25,10.11]
[1641691778515,0.25,142.36,142.26,3.0]
[1641691778815,0.25,142.36,142.27,10.11]
[1641691779215,10.7898,142.38,142.28,10.5398]
[1641691779417,10.7898,142.38,142.27,10.11]
[1641691779818,20.8998,142.38,142.23,10.11]
[1641691780018,48.3051,142.37,142.23,10.11]
[1641691780246,48.5651,142.37,142.23,10.11]
[1641691780446,0.25,142.36,142.24,0.51]
[1641691780647,0.25,142.36,142.25,10.11]
[1641691781046,0.25,142.36,142.26,0.51]
[1641691781247,0.25,142.36,142.26,10.62]
[1641691781447,10.7901,142.38,142.26,21.1619]
[1641691781648,0.25,142.38,142.26,21.1619]
[1641691783551,11.05,142.38,142.26,10.5419]
[1641691784751,0.25,142.38,142.27,0.26]
[1641691784951,0.25,142.38,142.3,10.539]
[1641691785551,96.0846,142.39,142.3,10.539]
[1641691785752,22.7415,142.42,142.3,18.969]
[1641691785952,22.7415,142.42,142.34,10.536]
[1641691787957,22.7415,142.42,142.35,30.61940646]
[1641691788156,75.9293,142.43,142.36,10.5346]
[1641691788355,177.3618,142.45,142.36,10.5346]
[1641691788555,100.0736,142.45,142.36,10.5346]
[1641691788759,0.51,142.44,142.32,8.43]
[1641691788955,24.3831,142.44,142.32,8.43]
[1641691789358,34.9183,142.44,142.34,10.5362]
[1641691789757,43.3483,142.44,142.28,8.43]
[1641691789957,3.0,142.43,142.26,1.97910036]
[1641691790156,8.43,142.42,142.26,1.97910036]
[1641691790356,10.59345313,142.42,142.26,1.97910036]
[1641691790554,10.5445,142.34,142.26,1.97910036]
[1641691790960,10.5445,142.34,142.24,24.83948405]
[1641691791656,0.25,142.33,142.24,24.83948405]
[1641691791859,10.7932,142.33,142.25,10.5424]
[1641691792457,0.26,142.32,142.22,8.43]
[1641691793059,10.5443,142.32,142.23,10.5444]
[1641691793457,0.25,142.31,142.23,33.32004461]
[1641691794460,0.25,142.34,142.23,33.32004461]
[1641691794864,10.5431,142.33,142.23,33.32004461]
[1641691795058,10.5431,142.33,142.23,10.5444]
[1641691795260,0.51,142.32,142.21,12.52450036]
[1641691795461,9.118,142.32,142.21,1.97910036]
[1641691795661,58.0539,142.32,142.21,1.97910036]
[1641691796264,10.5478,142.27,142.21,1.97910036]
[1641691796463,0.51,142.26,142.18,1.97910036]
[1641691797262,10.5496,142.24,142.18,1.97910036]
[1641691797464,10.5496,142.24,142.16,1.97910036]
[1641691797864,0.25,142.23,142.16,1.97910036]
[1641691798264,10.5488,142.25,142.17,0.26]
[1641691798463,77.0327,142.3,142.17,0.26]
[1641691798665,77.0327,142.3,142.17,8.69]
[1641691798863,77.0327,142.3,142.18,31.58351529]
[1641691799068,79.2342,142.31,142.19,8.43]
[1641691799265,89.7788,142.31,142.22,10.5451]
[1641691799465,0.25,142.3,142.22,10.5451]
[1641691799866,79.2342,142.31,142.21,8.43]
[1641691800068,0.25,142.3,142.21,8.43]
[1641691800267,0.25,142.3,142.21,10.40910036]
[1641691800466,0.51,142.3,142.21,10.40910036]
[1641691800967,0.25,142.3,142.22,0.26]
[1641691801168,0.25,142.3,142.21,35.18141072]
[1641691801566,89.779,142.31,142.21,45.72731072]
[1641691801767,10.5448,142.31,142.22,0.26]
[1641691802068,10.5448,142.31,142.22,8.69]
[1641691802270,10.5448,142.31,142.22,8.43]
[1641691802871,0.26,142.3,142.21,1.97910036]
[1641691803070,10.5503,142.26,142.21,1.97910036]
[1641691803472,0.26,142.25,142.21,1.97910036]
[1641691803672,8.43,142.3,142.21,1.97910036]
[1641691803874,8.43,142.3,142.18,23.13874811]
[1641691804080,10.5472,142.28,142.18,23.13874811]
[1641691804280,97.1518,142.31,142.18,31.56874811]
[1641691804883,97.1518,142.31,142.21,10.5454]
[1641691805080,10.547,142.29,142.19,0.26]
[1641691805282,10.547,142.29,142.18,31.56874811]
[1641691805482,10.547,142.29,142.19,1.97910036]
[1641691805882,97.1518,142.31,142.19,1.97910036]
[1641691805883,3.51,142.28,142.19,1.97910036]
[1641691806182,10.5503,142.24,142.19,1.97910036]
[1641691806399,0.51,142.23,142.15,1.97910036]
[1641691807203,10.8008,142.23,142.14,10.5512]
[1641691807404,0.26,142.22,142.12,10.40910036]
[1641691808202,0.26,142.22,142.14,10.551]
[1641691808402,10.8114,142.22,142.14,10.551]
[1641691808606,0.25,142.21,142.12,10.40910036]
[1641691809803,0.25,142.22,142.12,18.9823]
[1641691810806,10.8015,142.22,142.12,18.9823]
[1641691811805,0.25,142.22,142.12,18.9823]
[1641691812005,0.51,142.22,142.12,18.9823]
[1641691812204,0.25,142.22,142.12,18.9823]
[1641691812905,0.25,142.22,142.13,0.26]
[1641691813106,0.25,142.22,142.12,8.43]
[1641691813306,18.8096,142.22,142.11,1.97910036]
[1641691813506,3.0,142.21,142.11,1.97910036]
[1641691813706,3.26,142.21,142.11,1.97910036]
[1641691813910,0.25,142.2,142.11,1.97910036]
[1641691814611,10.5571,142.16,142.11,1.97910036]
[1641691815010,0.25,142.15,142.11,1.97910036]
[1641691815611,10.5578,142.14,142.11,1.97910036]
[1641691815811,10.5578,142.14,142.06,10.5571]
[1641691816012,0.26,142.13,142.06,10.5571]
[1641691816413,0.51,142.13,142.05,10.40910036]
[1641691816617,17.3801,142.13,142.05,10.40910036]
[1641691816814,17.1201,142.13,142.05,1.97910036]
[1641691817014,24.0,142.11,142.01,3.92633345]
[1641691817520,5.16345313,142.1,142.01,3.92633345]
[1641691817719,8.636,142.1,142.01,3.92633345]
[1641691818116,10.5639,142.06,142.0,0.3519766]
[1641691818518,0.51,142.05,142.0,0.3519766]
[1641691818915,0.25,142.05,142.0,0.3519766]
[1641691819118,10.8147,142.05,142.0,0.3519766]
[1641691819317,3.26,142.07,142.01,25.08185422]
[1641691819318,0.26,142.07,142.01,25.08185422]
[1641691819517,74.923,142.09,142.01,25.08185422]
[1641691819919,24.2357,142.11,142.01,25.08185422]
[1641691820119,24.2357,142.11,142.0,0.3519766]
[1641691820323,3.0,142.1,142.0,0.3519766]
[1641691820621,8.43,142.09,142.0,0.3519766]
[1641691820822,10.08345313,142.09,142.0,0.3519766]
[1641691821022,3.26,142.08,142.0,0.3519766]
[1641691821221,10.5658,142.04,142.0,0.3519766]
[1641691821429,35.2188,142.07,142.0,0.3519766]
[1641691821430,0.25,142.03,142.0,0.3519766]
[1641691821821,8.43,142.12,142.0,0.3519766]
[1641691822022,3.62763218,142.1,142.0,9.0419766]
[1641691822220,10.5566,142.15,142.0,21.50672973]
[1641691822422,10.5566,142.15,142.02,27.63824948]
[1641691822621,10.5566,142.15,142.03,8.43]
[1641691823620,10.5595,142.12,142.03,18.9892]
[1641691823821,10.5595,142.12,142.0,36.48904119]
[1641691824021,24.001,142.11,142.0,36.48904119]
[1641691824221,23.751,142.11,142.0,36.48904119]
[1641691824422,0.25,142.14,142.01,0.51]
[1641691824622,77.6051,142.14,142.07,10.5559]
[1641691824824,124.6474,142.2,142.08,8.43]
[1641691825023,204.5873,142.2,142.09,3.0]
[1641691825424,79.9399,142.2,142.09,11.43]
[1641691825621,90.4933,142.2,142.1,10.5534]
[1641691825821,92.14675313,142.2,142.07,43.6078]
[1641691826021,27.0129,142.19,142.08,3.0]
[1641691826220,27.0129,142.19,142.07,43.6078]
[1641691826421,24.0129,142.19,142.07,43.6078]
[1641691826621,24.0129,142.19,142.07,34.61249573]
[1641691826821,24.0129,142.19,142.13,10.5517]
[1641691827022,0.25,142.19,142.13,10.5517]
[1641691827622,79.9399,142.2,142.13,10.5517]
[1641691829126,73.9843,142.26,142.14,33.0709899]
[1641691829326,80.6561,142.32,142.14,33.0709899]
[1641691829327,0.00191604,142.48,142.45,13.44593074]
[1641691829526,32.94606052,142.56,142.51,14.6]
[1641691829527,0.00286052,142.56,142.51,14.6]
[1641691829726,23.15519538,142.67,142.52,66.43]
[1641691829727,10.3261,142.62,142.52,66.43]
[1641691829927,23.15519538,142.67,142.55,0.32497592]
[1641691830232,30.84137616,142.75,142.56,8.43]
[1641691830432,30.84137616,142.75,142.52,0.25]
[1641691830433,30.84137616,142.75,142.63,0.31722045]
[1641691830637,30.84137616,142.75,142.64,8.43]
[1641691830836,30.84137616,142.75,142.65,8.43]
[1641691830837,70.0,142.74,142.65,8.43]
[1641691831136,70.0,142.74,142.52,0.25]
[1641691831335,30.84137616,142.75,142.59,10.5156]
[1641691831539,30.84137616,142.75,142.59,6.896]
[1641691831739,30.84137616,142.75,142.62,105.42]
[1641691831940,30.84137616,142.75,142.66,105.42]
[1641691832138,30.84137616,142.75,142.66,111.697]
[1641691832757,30.84137616,142.75,142.67,105.42]
[1641691833160,57.0,142.74,142.61,9.37032637]
[1641691833360,57.0,142.74,142.51,14.6]
[1641691833557,57.0,142.74,142.54,10.0]
[1641691833758,57.0,142.74,142.55,15.00514147]
[1641691833959,0.25,142.73,142.57,10.5172]
[1641691834159,0.25,142.73,142.58,8.43]
[1641691834359,0.25,142.73,142.59,8.43]
[1641691834561,8.43,142.59,142.51,29.60514147]
[1641691834761,8.43,142.59,142.52,10.0]
[1641691834960,0.51,142.58,142.51,14.6]
[1641691835360,8.43,142.59,142.51,14.6]
[1641691835764,8.43,142.59,142.52,8.43]
[1641691835963,8.43,142.59,142.53,8.43]
[1641691836362,8.43,142.59,142.53,8.14191103]
[1641691836964,0.26,142.58,142.53,8.14191103]
[1641691837163,8.43,142.59,142.53,8.14191103]
[1641691837464,8.43,142.59,142.54,105.42]
[1641691837664,8.43,142.59,142.55,8.43]
[1641691838465,8.43,142.59,142.48,33.94939957]
[1641691838667,8.43,142.59,142.54,10.5197]
[1641691838866,8.43,142.59,142.55,8.43]
[1641691839668,8.43,142.59,142.55,18.9491]
[1641691840067,8.43,142.59,142.55,8.43]
[1641691841668,31.47836544,142.7,142.55,8.43]
[1641691841867,31.47836544,142.7,142.56,27.56334762]
[1641691842066,31.47836544,142.7,142.57,8.43]
[1641691842467,31.47836544,142.7,142.65,10.5122]
[1641691842766,31.47836544,142.7,142.65,18.9422]
[1641691843369,12.9422,142.65,142.61,35.0401]
[1641691843967,12.9422,142.65,142.63,10.5134]
[1641691844367,12.9422,142.65,142.64,6.06429994]
[1641691845168,31.47836544,142.7,142.64,6.06429994]
[1641691845369,0.25,142.69,142.64,6.06429994]
[1641691845568,31.47836544,142.7,142.64,6.06429994]
[1641691845972,31.47836544,142.7,142.68,10.5103]
[1641691846270,22.588,142.82,142.69,6.06429994]
[1641691846472,22.588,142.82,142.67,8.43]
[1641691846672,22.588,142.82,142.73,35.0128]
[1641691846878,22.588,142.82,142.7,3.0]
[1641691846879,22.588,142.82,142.71,8.43]
[1641691847071,23.32112692,142.82,142.81,10.5008]
[1641691847472,10.7319,142.96,142.81,10.5008]
[1641691847473,231.9475,142.99,142.81,13.53299997]
[1641691847669,8.43,142.99,142.81,6.03219997]
[1641691847872,7.93,142.99,142.81,3.03219997]
[1641691848070,7.93,142.99,142.82,11.43]
[1641691848471,26.50836722,142.98,142.83,29.15876511]
[1641691848673,26.50836722,142.98,142.84,8.43]
[1641691848871,26.50836722,142.98,142.88,34.9745]
[1641691849071,26.50836722,142.98,142.88,8.43]
[1641691849270,94.7,143.0,142.88,8.43]
[1641691849870,23.56878527,142.99,142.96,34.9563]
[1641691850071,48.37178527,143.0,142.92,8.43]
[1641691850271,32.01568004,143.01,142.98,10.4876]
[1641691850475,32.01568004,143.01,142.99,6.06429994]
[1641691850671,32.01568004,143.01,142.92,8.43]
[1641691850872,32.01568004,143.01,142.89,8.43]
[1641691851275,32.01568004,143.01,142.85,8.43]
[1641691851473,32.01568004,143.01,142.83,35.10135564]
[1641691851673,32.01568004,143.01,142.84,8.43]
[1641691851873,32.01568004,143.01,142.85,8.43]
[1641691852073,38.2373,143.0,142.85,8.43]
[1641691852572,3.25,143.0,142.85,8.43]
[1641691852973,0.26,142.99,142.85,8.43]
[1641691853174,10.7548,142.99,142.85,8.43]
[1641691853373,0.25,142.98,142.86,0.26]
[1641691853574,0.25,142.98,142.87,8.43]
[1641691853776,3.0,143.0,142.84,31.61587943]
[1641691853777,3.0,143.0,142.88,8.43]
[1641691853975,32.01568004,143.01,142.88,8.43]
[1641691854175,0.25,143.0,142.88,8.43]
[1641691854576,0.25,143.0,142.85,8.43]
[1641691854775,0.51,143.0,142.85,8.43]
[1641691854975,3.51,143.0,142.85,8.43]
[1641691855375,46.9233,143.0,142.84,10.497]
[1641691855678,46.9233,143.0,142.72,117.3425]
[1641691855679,11.94,143.0,142.72,117.3425]
[1641691855876,11.94,143.0,142.73,8.43]
[1641691855877,13.59345313,143.0,142.73,8.43]
[1641691856077,92.45026937,143.0,142.73,8.43]
[1641691856278,22.30026937,143.0,142.73,8.43]
[1641691856477,55.65111624,143.0,142.74,31.88357672]
[1641691856676,3.88676179,142.99,142.75,8.43]
[1641691856876,8.68,142.98,142.75,8.43]
[1641691857076,11.68,142.98,142.77,22.49172188]
[1641691857276,11.68,142.98,142.78,8.43]
[1641691857478,70.15,142.97,142.78,8.43]
[1641691857677,80.6499,142.97,142.78,8.43]
[1641691857979,3.25,142.96,142.78,8.43]
[1641691858281,70.15,142.95,142.76,37.9997]
[1641691858479,70.15,142.93,142.73,35.0074]
[1641691858678,8.43,142.92,142.69,8.43]
[1641691858905,8.43,142.92,142.58,768.09547453]
[1641691858906,70.15,142.91,142.66,8.43]
[1641691859079,11.94,142.92,142.58,541.70127453]
[1641691859080,0.31638113,142.84,142.58,541.70127453]
[1641691859279,0.31215049,142.82,142.58,541.70127453]
[1641691859479,5.0,142.77,142.49,111.446]
[1641691859680,8.43,142.76,142.49,111.446]
[1641691859881,11.94,142.76,142.5,1.65345313]
[1641691860080,11.94,142.76,142.51,25.65648568]
[1641691860280,11.94,142.76,142.52,8.43]
[1641691860480,35.5749,142.76,142.58,35.0441]
[1641691860681,35.3149,142.76,142.6,23.13308604]
[1641691860881,35.3149,142.76,142.61,8.43]
[1641691861083,0.25,142.76,142.61,11.43]
[1641691861484,3.0,142.82,142.63,30.03224047]
[1641691861686,11.43,142.82,142.63,38.46224047]